bitfinex-derivatives/quotes_SOLF0:USTF0_20250709
["timestamp","ask_amount","ask_price","bid_price","bid_amount"]
[1752081306013,0.04087284,154.4,154.36,4.4833]
[1752081306417,6.4764,154.39,154.36,4.4833]
[1752081306610,6.4764,154.39,154.36,10.9605]
[1752081306812,6.4764,154.39,154.36,13.96628408]
[1752081307420,9.48218408,154.39,154.36,10.9605]
[1752081312018,3.00578408,154.38,154.31,621.1]
[1752081312225,3.00578408,154.37,154.33,3.00578408]
[1752081312616,9.52699957,154.37,154.34,6.4782]
[1752081312925,3.04979957,154.37,154.34,6.4782]
[1752081314025,9.52679957,154.37,154.34,6.4782]
[1752081314216,0.04401549,154.37,154.36,6.4774]
[1752081314522,3.00578408,154.42,154.36,3.00578408]
[1752081314717,4.19274807,154.41,154.38,3.00578408]
[1752081314912,4.19274807,154.4,154.39,6.4761]
[1752081315122,3.00578408,154.44,154.39,3.00578408]
[1752081315317,3.00578408,154.42,154.39,6.4761]
[1752081315722,9.48088408,154.42,154.4,0.04867984]
[1752081316916,6.4751,154.42,154.4,0.04867984]
[1752081319624,6.4751,154.42,154.4,6.52437984]
[1752081321226,6.4751,154.42,154.4,0.04867984]
[1752081322732,6.4748,154.43,154.4,6.52437984]
[1752081323734,6.4749,154.42,154.4,6.52437984]
[1752081323927,4.69481246,154.42,154.4,0.04867984]
[1752081324730,11.22248599,154.47,154.4,0.04867984]
[1752081324934,6.4753,154.41,154.4,0.04867984]
[1752081330635,10.632238,154.41,154.4,0.04867984]
[1752081331536,6.4753,154.41,154.4,0.04867984]
[1752081332234,10.64076253,154.41,154.4,0.04867984]
[1752081333640,6.4753,154.41,154.4,0.04867984]
[1752081334442,10.64204463,154.41,154.4,0.04867984]
[1752081335847,6.4769,154.38,154.33,4.69481246]
[1752081336234,6.4769,154.38,154.35,6.4775]
[1752081336439,4.69481246,154.39,154.32,2.3505]
[1752081336642,7.79074944,154.38,154.32,2.3505]
[1752081336942,3.0069903,154.36,154.32,5.3574903]
[1752081337342,6.4776,154.36,154.33,6.4784]
[1752081337841,9.4845903,154.36,154.33,6.4784]
[1752081338244,3.0069903,154.36,154.34,6.4782]
[1752081339044,0.04882386,154.37,154.34,3.0069903]
[1752081339644,0.04882386,154.37,154.35,3.0069903]
[1752081340049,0.04882386,154.37,154.36,9.4843903]
[1752081340540,0.00014402,154.37,154.36,9.4843903]
[1752081341056,3.00854661,154.37,154.34,9.98e-06]
[1752081341242,3.00840259,154.35,154.3,3.69535703]
[1752081341434,0.00014402,154.37,154.3,3.69535703]
[1752081341642,6.478,154.35,154.31,3.00840259]
[1752081342035,6.478,154.35,154.32,6.4788]
[1752081342246,4.50458205,154.34,154.32,6.4788]
[1752081342444,9.48580259,154.36,154.31,3.00840259]
[1752081342647,4.50432155,154.35,154.33,6.4784]
[1752081342843,4.50432155,154.34,154.33,6.4784]
[1752081343145,0.00014402,154.37,154.33,6.4784]
[1752081343348,4.50313216,154.36,154.33,6.4784]
[1752081343544,4.69854412,154.37,154.33,6.4784]
[1752081343545,4.50313216,154.35,154.33,6.4784]
[1752081343742,4.69854412,154.37,154.33,6.4784]
[1752081343946,4.50308402,154.36,154.33,6.4784]
[1752081344146,10.98098402,154.35,154.33,6.4784]
[1752081344347,6.4779,154.35,154.33,6.4784]
[1752081344944,6.4779,154.35,154.32,6.4789]
[1752081345451,6.4779,154.35,154.3,3.69535703]
[1752081345846,4.69958638,154.37,154.3,3.69535703]
[1752081346051,4.69944236,154.33,154.3,3.69535703]
[1752081346252,6.4795,154.31,154.3,3.69535703]
[1752081346549,4.70169233,154.36,154.3,3.69535703]
[1752081346845,0.04847557,154.32,154.3,3.69535703]
[1752081347046,9.07310256,154.41,154.3,3.69535703]
[1752081347047,9.07310256,154.44,154.31,6.96073749]
[1752081347248,4.69678195,154.41,154.33,4.69678195]
[1752081347449,6.4766,154.38,154.33,4.69678195]
[1752081347649,4.69678195,154.41,154.33,4.69678195]
[1752081347851,4.43439294,154.4,154.33,4.69678195]
[1752081348048,6.4766,154.38,154.33,4.69678195]
[1752081348249,6.4766,154.38,154.35,6.52678662]
[1752081349453,6.4771,154.37,154.35,0.04918662]
[1752081352046,6.4767,154.38,154.35,6.52688662]
[1752081352654,6.4763,154.39,154.35,0.04918662]
[1752081352856,4.4203803,154.38,154.36,6.4771]
[1752081353156,4.69678195,154.41,154.35,0.04918662]
[1752081353358,10.8962132,154.4,154.37,6.477]
[1752081353557,4.4203132,154.39,154.37,6.477]
[1752081353753,6.4759,154.4,154.37,6.477]
[1752081353955,4.4203132,154.39,154.37,6.477]
[1752081354154,6.4759,154.4,154.37,6.477]
[1752081354347,10.89644668,154.39,154.36,6.4774]
[1752081354550,4.42044365,154.38,154.36,6.4774]
[1752081354748,6.4761,154.39,154.36,6.4774]
[1752081354957,4.43008043,154.38,154.36,6.4774]
[1752081355158,6.4761,154.39,154.36,6.4774]
[1752081355360,4.4300865,154.38,154.36,6.4774]
[1752081355554,6.4761,154.39,154.36,6.4774]
[1752081355754,4.43008647,154.38,154.36,6.4774]
[1752081355957,6.4759,154.4,154.37,6.477]
[1752081356259,4.42979085,154.39,154.37,6.477]
[1752081356459,6.4762,154.39,154.36,6.4772]
[1752081359860,6.4766,154.38,154.36,6.4772]
[1752081360059,6.4766,154.38,154.35,6.52688662]
[1752081360261,4.43021431,154.37,154.35,0.04918662]
[1752081360460,6.4773,154.37,154.35,0.04918662]
[1752081360759,6.4773,154.37,154.34,6.478]
[1752081360960,6.4773,154.37,154.34,6.52213111]
[1752081363563,4.69678195,154.39,154.34,6.52213111]
[1752081363862,4.4271723,154.38,154.35,6.4778]
[1752081364062,4.4271723,154.37,154.35,6.4778]
[1752081364263,4.69678195,154.39,154.35,6.4778]
[1752081364464,6.4772,154.37,154.35,6.4778]
[1752081365164,4.43254124,154.36,154.35,6.4778]
[1752081365464,10.91024124,154.36,154.34,0.04413111]
[1752081365663,6.4777,154.36,154.34,0.04413111]
[1752081366863,6.4778,154.35,154.34,0.04413111]
[1752081367164,10.90640462,154.35,154.34,0.04413111]
[1752081368759,15.60318657,154.35,154.34,0.04413111]
[1752081368960,17.00527647,154.35,154.3,3.69535703]
[1752081369161,4.69678195,154.33,154.3,3.69535703]
[1752081369369,4.42860462,154.32,154.3,3.69535703]
[1752081369563,10.90810462,154.31,154.3,3.69535703]
[1752081369962,15.60488657,154.31,154.3,3.69535703]
[1752081372175,6.4802,154.3,154.23,2.3531]
[1752081372365,11.17698195,154.3,154.23,7.04988195]
[1752081372769,0.04965087,154.28,154.27,6.4809]
[1752081375770,4.69678195,154.34,154.23,3.3531]
[1752081375968,4.31196988,154.33,154.25,4.69678195]
[1752081376174,4.69678195,154.33,154.25,4.69678195]
[1752081376474,4.69678195,154.33,154.3,6.4797]
[1752081376973,4.69678195,154.33,154.3,6.52550667]
[1752081378274,6.4791,154.32,154.3,6.52550667]
[1752081378574,4.69678195,154.33,154.3,0.04580667]
[1752081378878,6.4793,154.32,154.3,0.04580667]
[1752081380676,4.69678195,154.33,154.3,0.04580667]
[1752081380973,4.69678195,154.37,154.3,4.74258862]
[1752081381173,4.31273819,154.36,154.3,4.74258862]
[1752081381377,4.69678195,154.37,154.3,0.04580667]
[1752081381673,4.3130882,154.36,154.3,0.04580667]
[1752081381870,6.4783,154.34,154.3,0.04580667]
[1752081382570,6.478,154.35,154.31,6.4791]
[1752081382770,6.478,154.35,154.3,0.04580667]
[1752081383280,6.478,154.35,154.32,6.479]
[1752081383473,6.4783,154.34,154.3,0.04580667]
[1752081383876,6.4783,154.34,154.31,6.4792]
[1752081384277,6.4787,154.33,154.31,6.4792]
[1752081386168,6.4782,154.34,154.31,6.4792]
[1752081386567,4.69678195,154.37,154.3,6.52550667]
[1752081386771,12.14261246,154.36,154.3,6.52550667]
[1752081387070,6.479,154.33,154.3,6.52550667]
[1752081387265,6.479,154.33,154.3,0.04580667]
[1752081387976,4.69678195,154.35,154.3,0.04580667]
[1752081388176,4.32388645,154.34,154.3,0.04580667]
[1752081388372,4.69678195,154.35,154.3,0.04580667]
[1752081388572,6.4793,154.32,154.3,0.04580667]
[1752081391676,4.69678195,154.35,154.3,0.04580667]
[1752081391973,6.4795,154.31,154.3,0.04580667]
[1752081392376,11.17628195,154.31,154.3,0.04580667]
[1752081394277,15.50740468,154.31,154.3,0.04580667]
[1752081394486,15.50740468,154.31,154.26,6.4814]
[1752081394487,6.4805,154.29,154.25,6.4818]
[1752081394875,4.69678195,154.29,154.23,2.3531]
[1752081395074,6.481,154.28,154.24,6.4823]
[1752081395888,6.52563121,154.28,154.24,6.4823]
[1752081396477,6.52563121,154.28,154.25,6.482]
[1752081396977,0.04463121,154.28,154.25,6.482]
[1752081398286,0.04463121,154.28,154.26,6.4814]
[1752081399076,0.04463121,154.28,154.27,6.4812]
[1752081399985,2.2649,154.34,154.3,6.4797]
[1752081400287,6.4784,154.34,154.27,4.69678195]
[1752081400486,6.4784,154.34,154.3,6.4797]
[1752081400785,4.69678195,154.35,154.3,6.4797]
[1752081400982,6.4788,154.33,154.3,6.52900362]
[1752081401286,4.69678195,154.36,154.31,6.4794]
[1752081401475,12.12931894,154.35,154.31,6.4794]
[1752081401780,10.79652446,154.34,154.31,6.4794]
[1752081401984,4.69678195,154.36,154.3,0.04930362]
[1752081402185,4.69678195,154.34,154.3,0.04930362]
[1752081402579,4.69678195,154.34,154.3,6.52890362]
[1752081402983,4.69678195,154.36,154.3,0.04930362]
[1752081403182,4.33347309,154.35,154.3,0.04930362]
[1752081403384,4.69678195,154.36,154.3,0.04930362]
[1752081403580,10.81275054,154.35,154.31,6.4791]
[1752081403779,6.4781,154.35,154.31,6.4791]
[1752081403978,4.69678195,154.36,154.31,6.4791]
[1752081404182,6.4782,154.34,154.31,6.4791]
[1752081404682,4.69678195,154.36,154.3,6.52910362]
[1752081404883,4.33621604,154.35,154.3,6.52910362]
[1752081405082,4.33621604,154.34,154.3,4.74608557]
[1752081405283,4.69678195,154.37,154.3,4.74608557]
[1752081405486,4.33570936,154.36,154.3,4.74608557]
[1752081405685,6.4776,154.36,154.32,6.4787]
[1752081406190,6.4776,154.36,154.33,6.4786]
[1752081406686,4.33579965,154.35,154.33,6.4786]
[1752081406890,6.4776,154.36,154.33,6.4786]
[1752081407180,4.3361556,154.35,154.33,6.4786]
[1752081407385,6.4776,154.36,154.33,6.4786]
[1752081407688,4.69596184,154.42,154.35,4.69596184]
[1752081407888,7.82518839,154.41,154.35,4.69596184]
[1752081408081,7.82518839,154.4,154.35,4.69596184]
[1752081408283,4.69596184,154.42,154.36,6.52474798]
[1752081408483,7.84192296,154.41,154.36,6.52474798]
[1752081408686,7.84192296,154.4,154.36,6.52474798]
[1752081408888,4.69596184,154.42,154.36,6.52474798]
[1752081409190,7.84192296,154.41,154.36,6.52474798]
[1752081409386,7.84192296,154.4,154.36,6.52474798]
[1752081409687,4.69596184,154.42,154.36,6.52474798]
[1752081409990,7.84108931,154.41,154.36,6.52474798]
[1752081410180,14.31708931,154.4,154.36,6.52474798]
[1752081410383,6.476,154.4,154.36,6.52474798]
[1752081410683,6.476,154.4,154.37,6.4769]
[1752081416099,4.69596184,154.42,154.36,0.04754798]
[1752081416307,7.87480142,154.41,154.36,0.04754798]
[1752081416607,4.69596184,154.42,154.36,0.04754798]
[1752081416608,7.87480142,154.4,154.36,0.04754798]
[1752081416808,6.4764,154.39,154.36,6.52474798]
[1752081422714,4.69596184,154.42,154.36,0.04754798]
[1752081422915,4.69596184,154.38,154.36,0.04754798]
[1752081423112,4.69596184,154.38,154.29,6.92836184]
[1752081423309,4.69596184,154.36,154.31,6.4794]
[1752081423508,4.16411578,154.35,154.31,6.4794]
[1752081423717,4.69596184,154.36,154.3,6.4797]
[1752081423917,4.69596184,154.34,154.27,137.84965989]
[1752081424522,0.04254712,154.32,154.3,6.4797]
[1752081427123,0.04254712,154.32,154.31,6.4795]
[1752081427323,0.04254712,154.32,154.27,137.84965989]
[1752081427728,0.04254712,154.32,154.31,6.4795]
[1752081428425,0.04254712,154.32,154.3,6.4797]
[1752081429321,0.04254712,154.32,154.31,6.4795]
[1752081433226,0.04254712,154.32,154.3,6.4797]
[1752081433431,6.52174712,154.32,154.3,6.4797]
[1752081434131,0.04254712,154.32,154.27,137.84965989]
[1752081434526,0.04254712,154.32,154.3,6.4796]
[1752081435834,6.52184712,154.32,154.29,6.4802]
[1752081436233,6.4798,154.31,154.29,6.4802]
[1752081437232,6.4798,154.31,154.28,6.4805]
[1752081437631,6.4798,154.31,154.29,6.4802]
[1752081438636,4.69596184,154.31,154.25,2.1823]
[1752081439032,6.4801,154.3,154.27,6.4808]
[1752081440427,6.4801,154.3,154.28,6.4807]
[1752081441226,6.4801,154.3,154.27,6.481]
[1752081441939,6.4801,154.3,154.25,2.1823]
[1752081443839,6.4801,154.3,154.28,6.4806]
[1752081444246,0.04254712,154.32,154.26,4.69596184]
[1752081444444,0.04254712,154.32,154.29,6.48]
[1752081444740,6.52184712,154.32,154.29,6.48]
[1752081444940,6.52184712,154.32,154.3,6.4798]
[1752081448341,6.52184712,154.32,154.29,6.4801]
[1752081449136,0.04254712,154.32,154.26,4.69596184]
[1752081449339,0.04254712,154.32,154.25,2.1823]
[1752081449340,0.04254712,154.32,154.3,4.69596184]
[1752081449540,7.01596184,154.39,154.3,4.69596184]
[1752081449843,6.4777,154.36,154.33,6.4784]
[1752081450842,6.4777,154.36,154.33,6.52018193]
[1752081451740,6.4778,154.35,154.33,6.52018193]
[1752081451940,6.4778,154.35,154.33,0.04178193]
[1752081454335,6.4782,154.34,154.33,0.04178193]
[1752081454542,4.1322166,154.34,154.27,4.69596184]
[1752081454741,6.4796,154.31,154.28,6.4805]
[1752081455541,6.4796,154.31,154.29,6.4803]
[1752081455737,6.4796,154.31,154.26,4.69596184]
[1752081456043,6.4796,154.31,154.28,6.4805]
[1752081456541,0.04470891,154.3,154.28,6.4805]
[1752081456943,6.52470891,154.3,154.27,6.481]
[1752081457135,6.52470891,154.3,154.25,6.87826184]
[1752081457136,0.04470891,154.3,154.25,6.87826184]
[1752081457441,6.4803,154.29,154.27,6.4811]
[1752081458040,6.4803,154.29,154.26,6.4813]
[1752081459042,6.4803,154.29,154.27,6.4811]
[1752081460138,6.52470891,154.3,154.27,6.4811]
[1752081465147,6.52470891,154.3,154.25,2.1823]
[1752081465546,6.52470891,154.3,154.27,6.4809]
[1752081466048,6.4804,154.29,154.27,6.4809]
[1752081466943,0.04470891,154.3,154.27,6.4809]
[1752081467350,6.52490891,154.3,154.27,6.4809]
[1752081472452,0.04470891,154.3,154.25,2.1823]
[1752081473051,6.52480891,154.3,154.27,6.4807]
[1752081475756,6.4805,154.29,154.27,6.4807]
[1752081477853,6.52480891,154.3,154.25,2.1823]
[1752081478559,6.52480891,154.3,154.27,6.4809]
[1752081478755,6.4804,154.29,154.27,6.4809]
[1752081480264,6.4804,154.29,154.26,6.4814]
[1752081480964,9.49029803,154.29,154.26,6.4814]
[1752081482062,3.00989803,154.28,154.23,128.10950634]
[1752081482273,3.00989803,154.27,154.23,3.00989803]
[1752081482568,3.00989803,154.28,154.23,3.00989803]
[1752081482968,6.52459429,154.27,154.25,6.482]
[1752081484066,0.04319429,154.27,154.26,9.49149803]
[1752081484368,3.00989803,154.32,154.26,3.00989803]
[1752081484668,6.4797,154.31,154.29,6.4801]
[1752081484868,9.04288045,154.35,154.25,0.04141957]
[1752081484869,4.70107171,154.34,154.26,4.70107171]
[1752081485065,11.94862524,154.33,154.26,4.70107171]
[1752081485268,18.42792524,154.32,154.3,6.4799]
[1752081485465,6.4793,154.32,154.3,6.4799]
[1752081486464,4.70107171,154.34,154.29,6.4801]
[1752081486664,11.94408878,154.33,154.29,6.4801]
[1752081486869,11.94408878,154.32,154.29,6.4801]
[1752081487165,4.13806857,154.31,154.29,6.4801]
[1752081487371,6.4794,154.32,154.29,6.4801]
[1752081487571,4.13796447,154.31,154.29,6.4801]
[1752081487766,6.4794,154.32,154.29,6.4801]
[1752081487966,4.13804859,154.31,154.29,6.4801]
[1752081488161,6.4794,154.32,154.29,6.4801]
[1752081488373,4.13802777,154.31,154.29,6.4801]
[1752081488568,6.4794,154.32,154.29,6.4801]
[1752081488773,4.70107171,154.35,154.28,4.74211417]
[1752081488976,11.94621913,154.34,154.28,4.74211417]
[1752081489271,4.70107171,154.35,154.28,4.74211417]
[1752081489272,4.13875204,154.33,154.28,4.74211417]
[1752081489472,4.70107171,154.35,154.28,4.74211417]
[1752081489671,4.13845118,154.34,154.28,4.74211417]
[1752081489874,10.61735118,154.33,154.28,4.74211417]
[1752081490070,6.4789,154.33,154.28,4.74211417]
[1752081490674,10.61854125,154.32,154.28,4.74211417]
[1752081490876,6.4794,154.32,154.28,4.74211417]
[1752081492076,6.4794,154.32,154.29,6.4801]
[1752081492378,6.4795,154.31,154.29,6.4801]
[1752081494076,6.4795,154.31,154.28,6.52164246]
[1752081495882,6.4795,154.31,154.29,6.4802]
[1752081496480,6.4799,154.3,154.28,6.52154246]
[1752081497980,6.4797,154.31,154.28,6.52154246]
[1752081498184,4.70107171,154.34,154.28,6.52154246]
[1752081498377,11.9825118,154.33,154.28,6.52154246]
[1752081498577,6.4798,154.31,154.28,6.52154246]
[1752081499784,6.4798,154.31,154.29,6.4802]
[1752081500480,6.4793,154.32,154.3,6.4798]
[1752081500881,4.70107171,154.34,154.3,6.4798]
[1752081500882,6.4788,154.33,154.3,6.4798]
[1752081501078,4.145116,154.32,154.3,6.4798]
[1752081501386,4.145116,154.32,154.28,0.04104246]
[1752081501387,6.4788,154.33,154.31,6.4794]
[1752081502785,6.4784,154.34,154.32,6.4791]
[1752081503084,11.97946634,154.33,154.32,6.4791]
[1752081503485,4.14226047,154.33,154.32,6.4791]
[1752081504188,10.62096047,154.33,154.31,6.52019214]
[1752081504388,6.4787,154.33,154.31,6.52019214]
[1752081504887,6.4784,154.34,154.31,6.52019214]
[1752081505090,4.14141116,154.33,154.32,6.4791]
[1752081506188,4.14141116,154.33,154.31,6.52029214]
[1752081506391,6.4784,154.34,154.31,6.52029214]
[1752081506588,6.4791,154.32,154.31,0.04089214]
[1752081508291,10.62958332,154.32,154.31,0.04089214]
[1752081508793,13.63789964,154.32,154.31,0.04089214]
[1752081512596,10.62958332,154.32,154.31,0.04089214]
[1752081512896,4.15048332,154.32,154.31,0.04089214]
[1752081513097,4.15048332,154.32,154.31,3.04920846]
[1752081513287,3.00831632,154.37,154.31,3.04920846]
[1752081513494,11.99306499,154.36,154.34,6.4779]
[1752081513793,9.48561632,154.37,154.34,6.4779]
[1752081513994,4.14656922,154.36,154.34,6.4779]
[1752081514296,6.4776,154.36,154.33,9.48681632]
[1752081514798,6.4776,154.36,154.33,6.4785]
[1752081516092,6.4776,154.36,154.34,6.4781]
[1752081516900,653.51993281,154.4,154.33,4.69833749]
[1752081517095,11.98983913,154.39,154.33,4.69833749]
[1752081517300,11.98983913,154.38,154.33,4.69833749]
[1752081517500,11.98983913,154.37,154.35,6.4775]
[1752081517801,6.4766,154.38,154.35,6.4775]
[1752081518000,12.00443159,154.37,154.35,6.4775]
[1752081518199,6.4771,154.37,154.35,6.4775]
[1752081520999,6.4767,154.38,154.35,6.4775]
[1752081521192,281.31993281,154.4,154.35,6.4775]
[1752081521399,7.86107765,154.39,154.35,4.69833749]
[1752081521706,6.99413749,154.43,154.35,4.69833749]
[1752081521901,12.03167875,154.42,154.37,4.69833749]
[1752081522100,7.86133438,154.41,154.37,4.69833749]
[1752081522409,6.4747,154.43,154.4,6.4754]
[1752081522596,7.85848042,154.42,154.4,6.4754]
[1752081522799,7.85848042,154.41,154.4,6.4754]
[1752081523008,7.85848042,154.41,154.39,6.476]
[1752081523197,6.4751,154.42,154.39,6.476]
[1752081525601,6.4751,154.42,154.4,6.4756]
[1752081525801,6.4746,154.43,154.4,6.4756]
[1752081527808,6.4749,154.42,154.39,6.476]
[1752081528005,6.4749,154.42,154.37,4.74602356]
[1752081528509,4.69833749,154.44,154.37,0.04768607]
[1752081528712,4.69833749,154.4,154.37,0.04768607]
[1752081529210,6.4765,154.38,154.37,0.04768607]
[1752081550230,2.2034,154.41,154.37,0.04768607]
[1752081550430,12.11697851,154.4,154.37,0.04768607]
[1752081550728,12.11697851,154.39,154.37,0.04768607]
[1752081551034,6.90173749,154.41,154.37,0.04768607]
[1752081551234,12.11625197,154.4,154.37,0.04768607]
[1752081551531,6.4765,154.38,154.37,0.04768607]
[1752081554728,6.87253749,154.42,154.37,0.04768607]
[1752081554930,12.1235261,154.41,154.37,0.04768607]
[1752081555131,4.15162079,154.4,154.37,0.04768607]
[1752081555326,6.4756,154.41,154.38,6.4763]
[1752081556031,6.4756,154.41,154.39,6.4761]
[1752081556230,6.4751,154.42,154.37,0.04768607]
[1752081556432,4.15962056,154.41,154.37,0.04768607]
[1752081556633,6.4751,154.42,154.39,6.4759]
[1752081556833,4.16431617,154.41,154.39,6.4759]
[1752081557030,6.4751,154.42,154.39,6.4759]
[1752081557236,12.16288418,154.41,154.39,6.4759]
[1752081557433,6.4751,154.42,154.39,6.4759]
[1752081557630,12.16443445,154.41,154.4,6.4757]
[1752081558335,6.4742,154.44,154.39,0.04194361]
[1752081558529,12.16866964,154.43,154.39,0.04194361]
[1752081558739,12.16866964,154.42,154.39,0.04194361]
[1752081558929,9.04288045,154.45,154.39,0.04194361]
[1752081559129,12.16773968,154.44,154.41,6.4751]
[1752081559331,12.16773968,154.43,154.41,6.4751]
[1752081559532,12.16773968,154.42,154.41,6.4751]
[1752081560435,12.16773968,154.42,154.4,6.4755]
[1752081560735,16.02601794,154.46,154.4,6.4755]
[1752081560938,16.02601794,154.46,154.39,0.04194361]
[1752081560939,12.16730851,154.45,154.39,0.04194361]
[1752081561238,16.865646,154.44,154.39,0.04194361]
[1752081561431,6.4755,154.41,154.39,0.04194361]
[1752081562336,6.4757,154.4,154.39,0.04194361]
[1752081563036,6.4755,154.41,154.39,0.04194361]
[1752081563533,6.4755,154.41,154.39,6.51804361]
[1752081563734,6.4751,154.42,154.39,6.51804361]
[1752081563936,13.74121794,154.45,154.39,6.51804361]
[1752081564135,12.21017547,154.44,154.39,6.51804361]
[1752081564335,12.21017547,154.43,154.39,6.51804361]
[1752081564538,12.21017547,154.42,154.39,6.51804361]
[1752081564738,13.74121794,154.45,154.39,6.51804361]
[1752081565037,12.20924899,154.44,154.39,6.51804361]
[1752081565237,12.20924899,154.43,154.39,6.51804361]
[1752081565439,12.20924899,154.42,154.4,6.4756]
[1752081565639,2.2848,154.46,154.39,0.04194361]
[1752081565934,12.20966739,154.45,154.39,0.04194361]
[1752081566135,18.72539153,154.44,154.41,6.4751]
[1752081566339,12.20966739,154.43,154.41,6.4751]
[1752081566540,6.51572414,154.44,154.41,6.4751]
[1752081566741,12.20860158,154.43,154.41,6.4751]
[1752081567043,6.51572414,154.44,154.41,6.4751]
[1752081567241,12.20860157,154.43,154.41,6.4751]
[1752081567440,6.51572414,154.44,154.41,6.4751]
[1752081567642,12.21585792,154.43,154.41,6.4751]
[1752081567938,6.51572414,154.44,154.41,6.4751]
[1752081569143,0.04152414,154.44,154.42,6.4748]
[1752081569344,0.04152414,154.44,154.4,4.7402599]
[1752081569838,0.04152414,154.44,154.4,0.04192241]
[1752081570441,16.90805536,154.43,154.4,0.04192241]
[1752081570638,12.20971787,154.42,154.4,0.04192241]
[1752081570835,16.90805536,154.41,154.35,6.4776]
[1752081571041,12.20971787,154.4,154.35,6.4776]
[1752081571238,4.17899605,154.39,154.34,9.24063749]
[1752081571441,4.69833749,154.42,154.38,6.4765]
[1752081571639,12.2102375,154.41,154.34,9.24063749]
[1752081571842,6.4755,154.41,154.38,6.4763]
[1752081572040,0.04127465,154.39,154.38,6.4763]
[1752081580151,0.04127465,154.39,154.37,6.4768]
[1752081580549,0.04127465,154.39,154.35,4.69833749]
[1752081581454,0.04127465,154.39,154.34,5.5423]
[1752081581655,0.04127465,154.39,154.34,1.0]
[1752081581854,4.15384145,154.38,154.34,7.4782]
[1752081582055,6.4775,154.36,154.34,1.0]
[1752081582254,6.4775,154.36,154.32,4.69833749]
[1752081582458,6.4775,154.36,154.33,6.4784]
[1752081582851,6.51946655,154.36,154.33,6.4784]
[1752081583353,0.04196655,154.36,154.3,563.99833749]
[1752081583856,6.51966655,154.36,154.33,6.4786]
[1752081587758,6.4778,154.35,154.33,6.4786]
[1752081587959,6.4778,154.35,154.32,6.4789]
[1752081588852,6.4778,154.35,154.3,4.69833749]
[1752081589159,6.51956655,154.36,154.33,6.4786]
[1752081590458,0.04196655,154.36,154.33,0.04125555]
[1752081590656,0.04196655,154.36,154.34,4.69833749]
[1752081591259,0.04196655,154.36,154.35,6.4778]
[1752081593562,7.02473749,154.43,154.34,4.69833749]
[1752081593864,12.0661193,154.42,154.34,6.93923749]
[1752081594064,12.0661193,154.41,154.34,6.93923749]
[1752081594364,4.13256918,154.4,154.34,6.93923749]
[1752081594567,13.49943749,154.43,154.34,6.93923749]
[1752081594755,12.06693674,154.42,154.39,6.4759]
[1752081594961,12.06693674,154.41,154.35,0.04349062]
[1752081595160,4.13265185,154.4,154.36,4.69833749]
[1752081595360,4.69833749,154.45,154.38,4.69833749]
[1752081595562,12.07007174,154.44,154.38,4.69833749]
[1752081595862,12.07007174,154.43,154.41,6.475]
[1752081596062,12.07007174,154.42,154.41,6.475]
[1752081596859,11.17203749,154.45,154.42,6.4748]
[1752081597064,12.09987738,154.44,154.42,6.4748]
[1752081597263,12.09987738,154.43,154.42,6.4748]
[1752081603778,12.09987738,154.43,154.41,6.4751]
[1752081603980,12.09987738,154.42,154.41,6.4751]
[1752081607976,6.4753,154.41,154.39,0.04686725]
[1752081608181,12.09987738,154.4,154.39,0.04686725]
[1752081609882,12.09987738,154.4,154.39,6.52296725]
[1752081611983,12.12585244,154.4,154.39,6.52296725]
[1752081612785,12.12585244,154.4,154.39,0.04686725]
[1752081613482,12.12585244,154.4,154.39,6.52296725]
[1752081615380,12.12585244,154.4,154.39,0.04686725]
[1752081616086,12.12585244,154.4,154.39,6.52296725]
[1752081619585,12.12585244,154.4,154.39,0.04686725]
[1752081619789,18.60155244,154.4,154.39,0.04686725]
[1752081620889,12.12585244,154.4,154.39,0.04686725]
[1752081621187,12.12585244,154.4,154.39,6.52296725]
[1752081624990,12.12585244,154.4,154.39,0.04686725]
[1752081625191,18.60155244,154.4,154.39,0.04686725]
[1752081627893,6.4772,154.37,154.31,2.2558]
[1752081628994,0.04609841,154.36,154.34,6.4778]
[1752081630190,0.04609841,154.36,154.33,6.4785]
[1752081630390,0.04609841,154.36,154.31,2.2558]
[1752081630584,12.11043994,154.35,154.31,2.2558]
[1752081630784,6.478,154.35,154.33,6.4786]
[1752081631190,6.478,154.35,154.3,2.1851]
[1752081631394,11.2220359,154.36,154.33,6.4785]
[1752081631689,12.10991976,154.35,154.33,6.4785]
[1752081631891,11.2220359,154.36,154.3,2.1851]
[1752081632092,12.10991976,154.35,154.33,6.4785]